[Event "RUS-chT Premier 2021"]
[White "Predke,Alexandr"]
[Black "Andreikin,Dmitry"]
[WhiteTeam "Шахматная сборная Москвы"]
[BlackTeam "КПРФ"]
[Site "Sochi"]
[Round "2.19"]
[Annotator "ChessBase"]
[Result "1/2-1/2"]
[Date "2021.05.02"]
[WhiteElo "2690"]
[BlackElo "2725"]
[PlyCount "129"]
[TimeControl "60"]

1. d4 {[%emt 0:0:0]} d5 {[%emt 0:0:0]} 2. c4 {[%emt 0:0:0]} e6 {[%emt 0:0:0]} 3. Nf3 {[%emt 0:0:0]} Nf6 {[%emt 0:0:0]} 4. g3 {[%emt 0:0:3]} Bb4+ {[%emt 0:0:0]} 5. Bd2 {[%emt 0:0:17]} Be7 {[%emt 0:0:6]} 6. Bg2 {[%emt 0:0:7]
} 0-0 {[%emt 0:0:7]} 7. 0-0 {[%emt 0:0:6]} Nbd7 {[%emt 0:0:0]} 8. Qc2 {[%emt 0:0:27]} c6 {[%emt 0:0:10]} 9. a4 {[%emt 0:0:46]} a5 {[%emt 0:0:45]
} 10. Bf4 {[%emt 0:0:41]} Nh5 {[%emt 0:0:36]} 11. Bc1 {[%emt 0:0:0]} Nhf6 {[%emt 0:0:14]} 12. Bf4 {[%emt 0:17:21]} Nh5 {[%emt 0:0:34]} 13. Bc1 {[%emt 0:0:3]} Nhf6 {[%emt 0:0:8]} 14. b3 {[%emt 0:0:43]} b6 {[%emt 0:0:0]} 15. Bb2 {[%emt 0:1:50]} Bb7 {[%emt 0:3:25]} 16. Nc3 {[%emt 0:6:7]} Bb4 {[%emt 0:4:9]} 17. Rfd1 {[%emt 0:20:25]} Rc8 {[%emt 0:2:19]} 18. Ne5 {[%emt 0:7:1]
} Qe7 {[%emt 0:20:48]} 19. Nxd7 {[%emt 0:3:28]} Qxd7 {[%emt 0:0:0]} 20. Na2 {[%emt 0:0:3]} Be7 {[%emt 0:1:34]} 21. Nc1 {[%emt 0:2:50]} c5 {[%emt 0:9:2]} 22. dxc5 {[%emt 0:2:33]} bxc5 {[%emt 0:0:12]} 23. e3 {[%emt 0:1:30]
} d4 {[%emt 0:6:50]} 24. exd4 {[%emt 0:2:17]} Bxg2 {[%emt 0:0:0]} 25. Kxg2 {[%emt 0:0:4]} Qb7+ {[%emt 0:0:6]} 26. f3 {[%emt 0:1:26]} Ng4 {[%emt 0:1:32]} 27. Re1 {[%emt 0:12:6]} Bg5 {[%emt 0:20:49]} 28. Nd3 {[%emt 0:0:5]
} Rfd8 {[%emt 0:4:20]} 29. Bc3 {[%emt 0:16:6]} Ne3+ {[%emt 0:0:0]} 30. Rxe3 {[%emt 0:0:6]} Bxe3 {[%emt 0:0:5]} 31. dxc5 {[%emt 0:0:0]} Bd4 {[%emt 0:5:17]} 32. Re1 {[%emt 0:0:3]} Bxc3 {[%emt 0:1:32]} 33. Qxc3 {[%emt 0:0:2]} Rb8 {[%emt 0:0:45]} 34. Rb1 {[%emt 0:2:1]} Qc6 {[%emt 0:4:1]
} 35. Rd1 {[%emt 0:0:34]} Qc7 {[%emt 0:0:54]} 36. Re1 {[%emt 0:0:0]} Qb7 {[%emt 0:2:34]} 37. Rb1 {[%emt 0:0:23]} Qc6 {[%emt 0:3:37]} 38. Rd1 {[%emt 0:0:19]} Qc8 {[%emt 0:0:14]} 39. Re1 {[%emt 0:1:17]} f6 {[%emt 0:0:0]} 40. h4 {[%emt 0:0:0]} e5 {[%emt 0:0:0]} 41. b4 {[%emt 0:13:22]} axb4 {[%emt 0:23:32]} 42. Nxb4 {[%emt 0:0:4]} Ra8 {[%emt 0:0:3]} 43. c6 {[%emt 0:0:25]
} Rxa4 {[%emt 0:0:5]} 44. Re2 {[%emt 0:0:43]} Kh8 {[%emt 0:0:0]} 45. Rb2 {[%emt 0:7:1]} h6 {[%emt 0:2:17]} 46. Qc2 {[%emt 0:2:28]} Ra7 {[%emt 0:1:0]} 47. Qf2 {[%emt 0:0:50]} Ra1 {[%emt 0:1:7]} 48. Qb6 {[%emt 0:3:33]
} e4 {[%emt 0:1:42]} 49. fxe4 {[%emt 0:1:32]} Rdd1 {[%emt 0:0:0]} 50. Nd5 {[%emt 0:0:25]} Rg1+ {[%emt 0:0:49]} 51. Qxg1 {[%emt 0:3:24]} Rxg1+ {[%emt 0:0:7]} 52. Kxg1 {[%emt 0:0:4]} Qxc6 {[%emt 0:0:9]} 53. Rc2 {[%emt 0:2:56]} Qc5+ {[%emt 0:0:6]} 54. Kf1 {[%emt 0:0:15]} Qd4 {[%emt 0:0:0]} 55. Ke2 {[%emt 0:0:2]} Qxe4+ {[%emt 0:1:22]} 56. Ne3 {[%emt 0:0:4]
} g5 {[%emt 0:1:41]} 57. c5 {[%emt 0:0:33]} f5 {[%emt 0:1:5]} 58. Rc4 {[%emt 0:1:0]
} Qe6 {[%emt 0:0:25]} 59. hxg5 {[%emt 0:1:16]} hxg5 {[%emt 0:0:0]} 60. Kd3 {[%emt 0:0:37]} Qd7+ {[%emt 0:1:10]} 61. Ke2 {[%emt 0:0:30]} Qe6 {[%emt 0:0:14]} 62. c6 {[%emt 0:0:34]} f4 {[%emt 0:0:9]} 63. gxf4 {[%emt 0:0:2]
} gxf4 {[%emt 0:0:5]} 64. Rxf4 {[%emt 0:0:12]} Qxc6 {[%emt 0:0:0]} 65. Rf5 {[%emt 0:0:11]} 1/2-1/2

[Event "RUS-chT Premier 2021"]
[White "Dreev,Aleksey"]
[Black "Malakhov,Vladimir"]
[WhiteTeam "КПРФ"]
[BlackTeam "Шахматная сборная Москвы"]
[Site "Sochi"]
[Round "2.20"]
[Annotator "ChessBase"]
[Result "1/2-1/2"]
[Date "2021.05.02"]
[WhiteElo "2647"]
[BlackElo "2665"]
[PlyCount "34"]
[TimeControl "60"]

1. d4 {[%emt 0:0:0]} d5 {[%emt 0:0:0]} 2. c4 {[%emt 0:0:0]} c6 {[%emt 0:0:0]} 3. Nf3 {[%emt 0:0:0]} Nf6 {[%emt 0:0:0]} 4. e3 {[%emt 0:0:7]} g6 {[%emt 0:0:32]} 5. Nc3 {[%emt 0:0:20]} Bg7 {[%emt 0:0:14]} 6. Bd3 {[%emt 0:0:0]} 0-0 {[%emt 0:0:21]} 7. 0-0 {[%emt 0:0:9]} Bg4 {[%emt 0:0:8]} 8. h3 {[%emt 0:0:24]} Bxf3 {[%emt 0:0:19]} 9. Qxf3 {[%emt 0:0:7]} e6 {[%emt 0:0:0]} 10. Rd1 {[%emt 0:0:51]} Nbd7 {[%emt 0:2:13]} 11. Bd2 {[%emt 0:0:16]} Re8 {[%emt 0:2:9]} 12. Be1 {[%emt 0:0:19]} a6 {[%emt 0:0:28]} 13. Rac1 {[%emt 0:0:42]
} Rc8 {[%emt 0:1:9]} 14. a3 {[%emt 0:0:26]} Qe7 {[%emt 0:0:0]} 15. Bf1 {[%emt 0:0:41]} h5 {[%emt 0:1:56]} 16. Qg3 {[%emt 0:3:15]} b5 {[%emt 0:10:23]
} 17. cxd5 {[%emt 0:0:30]} cxd5 {[%emt 0:2:21]} 1/2-1/2

[Event "RUS-chT Premier 2021"]
[White "Inarkiev,Ernesto"]
[Black "Alekseev,Evgeny"]
[WhiteTeam "Шахматная сборная Москвы"]
[BlackTeam "КПРФ"]
[Site "Sochi"]
[Round "2.21"]
[Annotator "ChessBase"]
[Result "1/2-1/2"]
[Date "2021.05.02"]
[WhiteElo "2654"]
[BlackElo "2619"]
[PlyCount "71"]
[TimeControl "60"]

1. e4 {[%emt 0:0:2]} c5 {[%emt 0:1:9]} 2. Nf3 {[%emt 0:0:6]} e6 {[%emt 0:0:0]} 3. d4 {[%emt 0:0:6]} cxd4 {[%emt 0:0:8]} 4. Nxd4 {[%emt 0:0:3]} Nc6 {[%emt 0:0:12]} 5. Nc3 {[%emt 0:0:5]} a6 {[%emt 0:0:12]} 6. Be2 {[%emt 0:0:16]
} d6 {[%emt 0:0:56]} 7. Be3 {[%emt 0:0:6]} Nf6 {[%emt 0:4:37]
} 8. f4 {[%emt 0:0:15]} d5 {[%emt 0:14:21]} 9. e5 {[%emt 0:3:58]} Nd7 {[%emt 0:0:50]
} 10. Qd2 {[%emt 0:0:40]} Bc5 {[%emt 0:5:35]} 11. Nb3 {[%emt 0:0:0]} Bb4 {[%emt 0:14:8]} 12. Bd3 {[%emt 0:18:35]} Qc7 {[%emt 0:8:51]} 13. 0-0 {[%emt 0:7:57]} 0-0 {[%emt 0:7:32]} 14. Qf2 {[%emt 0:8:5]} Be7 {[%emt 0:2:37]
} 15. a3 {[%emt 0:2:32]} b6 {[%emt 0:1:7]} 16. Rae1 {[%emt 0:0:0]} Rb8 {[%emt 0:7:57]} 17. Qg3 {[%emt 0:8:27]} f5 {[%emt 0:1:41]} 18. exf6 {[%emt 0:0:52]} Nxf6 {[%emt 0:0:4]} 19. Nd4 {[%emt 0:4:53]} Bd7 {[%emt 0:16:14]
} 20. Kh1 {[%emt 0:9:7]} b5 {[%emt 0:3:49]} 21. Bg1 {[%emt 0:0:0]} b4 {[%emt 0:5:38]} 22. axb4 {[%emt 0:0:31]} Nxd4 {[%emt 0:0:13]} 23. Bxd4 {[%emt 0:0:5]} Bxb4 {[%emt 0:0:53]} 24. Qh4 {[%emt 0:2:28]} h6 {[%emt 0:0:18]
} 25. Re3 {[%emt 0:3:45]} Bc5 {[%emt 0:1:50]} 26. Be5 {[%emt 0:0:0]} Bd6 {[%emt 0:0:1]} 27. Qg3 {[%emt 0:1:33]} Bxe5 {[%emt 0:1:8]} 28. fxe5 {[%emt 0:0:28]} Ne4 {[%emt 0:0:44]} 29. Rxf8+ {[%emt 0:0:26]} Rxf8 {[%emt 0:0:1]
} 30. Nxe4 {[%emt 0:1:7]} dxe4 {[%emt 0:0:8]} 31. Rxe4 {[%emt 0:0:7]
} Qxc2 {[%emt 0:0:19]} 32. h3 {[%emt 0:0:34]} Qxb2 {[%emt 0:0:0]} 33. Qg6 {[%emt 0:0:59]} Qc1+ {[%emt 0:0:16]} 34. Kh2 {[%emt 0:0:6]} Qg5 {[%emt 0:0:19]} 35. Qxg5 {[%emt 0:0:45]} hxg5 {[%emt 0:0:1]} 36. Bxa6 {[%emt 0:0:2]
} 1/2-1/2

[Event "RUS-chT Premier 2021"]
[White "Zvjaginsev,Vadim"]
[Black "Sjugirov,Sanan"]
[WhiteTeam "КПРФ"]
[BlackTeam "Шахматная сборная Москвы"]
[Site "Sochi"]
[Round "2.22"]
[Annotator "ChessBase"]
[Result "1/2-1/2"]
[Date "2021.05.02"]
[WhiteElo "2614"]
[BlackElo "2663"]
[PlyCount "75"]
[TimeControl "60"]

1. c4 {[%emt 0:0:0]} e5 {[%emt 0:1:30]} 2. Nc3 {[%emt 0:0:0]} Nf6 {[%emt 0:0:27]
} 3. Nf3 {[%emt 0:0:10]} Nc6 {[%emt 0:0:21]} 4. a3 {[%emt 0:0:0]} g6 {[%emt 0:10:36]} 5. g3 {[%emt 0:0:40]} Bg7 {[%emt 0:0:53]} 6. Bg2 {[%emt 0:0:8]
} 0-0 {[%emt 0:0:50]} 7. 0-0 {[%emt 0:0:13]} Re8 {[%emt 0:0:0]} 8. d3 {[%emt 0:2:9]} e4 {[%emt 0:0:25]} 9. dxe4 {[%emt 0:1:15]} Nxe4 {[%emt 0:0:7]
} 10. Nxe4 {[%emt 0:5:12]} Rxe4 {[%emt 0:0:5]} 11. Ng5 {[%emt 0:4:44]
} Re7 {[%emt 0:14:11]} 12. Ne4 {[%emt 0:3:54]} h6 {[%emt 0:0:0]} 13. Bd2 {[%emt 0:6:57]} d6 {[%emt 0:2:41]} 14. Bc3 {[%emt 0:2:46]} Re8 {[%emt 0:18:22]} 15. Bxg7 {[%emt 0:7:19]} Kxg7 {[%emt 0:0:5]} 16. b4 {[%emt 0:1:15]
} Qe7 {[%emt 0:8:1]} 17. b5 {[%emt 0:7:55]} Nd8 {[%emt 0:0:0]} 18. a4 {[%emt 0:2:28]} Ne6 {[%emt 0:2:32]} 19. a5 {[%emt 0:1:28]} Rb8 {[%emt 0:0:51]
} 20. b6 {[%emt 0:3:8]} axb6 {[%emt 0:0:16]} 21. axb6 {[%emt 0:0:6]
} Rd8 {[%emt 0:9:46]} 22. bxc7 {[%emt 0:2:24]} Nxc7 {[%emt 0:0:0]} 23. Qd4+ {[%emt 0:5:16]} Qe5 {[%emt 0:0:12]} 24. Rfd1 {[%emt 0:1:4]
} Qxd4 {[%emt 0:4:5]} 25. Rxd4 {[%emt 0:0:10]} b5 {[%emt 0:1:56]} 26. Rxd6 {[%emt 0:17:7]} Rxd6 {[%emt 0:0:10]} 27. Nxd6 {[%emt 0:0:7]} bxc4 {[%emt 0:0:0]} 28. Nxc4 {[%emt 0:2:5]} Ba6 {[%emt 0:0:4]} 29. Ne5 {[%emt 0:2:34]} Bxe2 {[%emt 0:1:3]} 30. f4 {[%emt 0:0:10]} Ba6 {[%emt 0:2:33]} 31. Rc1 {[%emt 0:3:19]
} Ne8 {[%emt 0:0:53]} 32. Bd5 {[%emt 0:1:22]} f6 {[%emt 0:0:0]} 33. Nc6 {[%emt 0:2:15]} Rb5 {[%emt 0:0:40]} 34. Bf3 {[%emt 0:2:55]} Rb2 {[%emt 0:0:49]} 35. Nd8 {[%emt 0:3:28]} Rd2 {[%emt 0:0:58]} 36. Ne6+ {[%emt 0:0:27]
} Kf7 {[%emt 0:0:6]} 37. Nc5 {[%emt 0:4:46]} Bc8 {[%emt 0:0:0]} 38. Ne4 {[%emt 0:2:18]} 1/2-1/2

[Event "RUS-chT Premier 2021"]
[White "Sarana,Alexey"]
[Black "Rublevsky,Sergei"]
[WhiteTeam "Шахматная сборная Москвы"]
[BlackTeam "КПРФ"]
[Site "Sochi"]
[Round "2.23"]
[Annotator "ChessBase"]
[Result "1/2-1/2"]
[Date "2021.05.02"]
[WhiteElo "2649"]
[BlackElo "2642"]
[PlyCount "139"]
[TimeControl "60"]

1. d4 {[%emt 0:0:0]} d5 {[%emt 0:0:0]} 2. Nf3 {[%emt 0:0:0]} Nf6 {[%emt 0:0:0]
} 3. c4 {[%emt 0:0:0]} c6 {[%emt 0:0:0]} 4. Nc3 {[%emt 0:0:0]} dxc4 {[%emt 0:0:0]} 5. g3 {[%emt 0:0:21]} g6 {[%emt 0:0:0]} 6. Bg2 {[%emt 0:0:26]
} Bg7 {[%emt 0:0:7]} 7. 0-0 {[%emt 0:0:9]} 0-0 {[%emt 0:0:0]} 8. e4 {[%emt 0:0:6]} b5 {[%emt 0:0:50]} 9. Qe2 {[%emt 0:0:8]} b4 {[%emt 0:9:2]
} 10. Na4 {[%emt 0:6:2]} Qa5 {[%emt 0:18:52]} 11. Nc5 {[%emt 0:0:0]} Na6 {[%emt 0:2:20]} 12. e5 {[%emt 0:29:36]} Nd5 {[%emt 0:1:18]} 13. Qxc4 {[%emt 0:3:50]} Nxc5 {[%emt 0:33:20]} 14. Qxc5 {[%emt 0:0:40]} Qxc5 {[%emt 0:0:3]
} 15. dxc5 {[%emt 0:0:5]} Bf5 {[%emt 0:5:33]} 16. Nd4 {[%emt 0:7:46]
} Rac8 {[%emt 0:0:16]} 17. Re1 {[%emt 0:3:21]} Rfd8 {[%emt 0:0:0]} 18. Bg5 {[%emt 0:2:0]} h6 {[%emt 0:4:44]} 19. Bd2 {[%emt 0:4:15]} e6 {[%emt 0:3:51]} 20. a3 {[%emt 0:1:8]} a5 {[%emt 0:3:28]} 21. axb4 {[%emt 0:0:57]
} axb4 {[%emt 0:0:34]} 22. Ra5 {[%emt 0:3:54]} Bd3 {[%emt 0:0:0]} 23. h4 {[%emt 0:2:48]} Ne7 {[%emt 0:0:59]} 24. Nf3 {[%emt 0:1:19]} b3 {[%emt 0:0:46]
} 25. Ra7 {[%emt 0:2:23]} Nf5 {[%emt 0:4:9]} 26. Rb7 {[%emt 0:0:0]} Bc2 {[%emt 0:0:46]} 27. Bc3 {[%emt 0:3:24]} Bf8 {[%emt 0:0:47]} 28. g4 {[%emt 0:1:12]} Ne7 {[%emt 0:0:6]} 29. Nd4 {[%emt 0:1:12]} Nd5 {[%emt 0:0:0]} 30. Ba5 {[%emt 0:1:10]} Re8 {[%emt 0:3:27]} 31. Bxd5 {[%emt 0:3:50]} exd5 {[%emt 0:0:41]} 32. e6 {[%emt 0:5:35]} fxe6 {[%emt 0:1:41]} 33. Nxe6 {[%emt 0:0:1]
} Re7 {[%emt 0:0:19]} 34. Rxe7 {[%emt 0:2:4]} Bxe7 {[%emt 0:0:0]} 35. Nd4 {[%emt 0:0:42]} Bxc5 {[%emt 0:0:53]} 36. Nxc2 {[%emt 0:0:5]
} bxc2 {[%emt 0:0:12]} 37. Rc1 {[%emt 0:0:2]} Ra8 {[%emt 0:2:4]} 38. Bd2 {[%emt 0:2:24]
} Ra4 {[%emt 0:1:16]} 39. Rxc2 {[%emt 0:0:51]} Rxg4+ {[%emt 0:0:0]} 40. Kf1 {[%emt 0:0:0]} Rc4 {[%emt 0:0:0]} 41. Rxc4 {[%emt 0:1:15]} dxc4 {[%emt 0:1:30]} 42. Bxh6 {[%emt 0:0:2]} Bd4 {[%emt 0:2:8]} 43. Bc1 {[%emt 0:0:27]
} Bf6 {[%emt 0:2:36]} 44. Ke2 {[%emt 0:0:4]} Bxh4 {[%emt 0:0:0]} 45. Bd2 {[%emt 0:1:11]} Kf7 {[%emt 0:2:7]} 46. Ke3 {[%emt 0:4:19]} Kf6 {[%emt 0:14:41]} 47. f3 {[%emt 0:3:18]} Ke5 {[%emt 0:7:30]} 48. Bc3+ {[%emt 0:0:18]
} Kf5 {[%emt 0:1:18]} 49. Kd4 {[%emt 0:2:19]} Kf4 {[%emt 0:0:0]} 50. Kxc4 {[%emt 0:0:34]} Be7 {[%emt 0:0:3]} 51. b4 {[%emt 0:0:41]} Kxf3 {[%emt 0:0:22]} 52. Bd2 {[%emt 0:0:3]} Ke4 {[%emt 0:1:8]} 53. Bc1 {[%emt 0:2:9]
} Bd6 {[%emt 0:0:54]} 54. Bg5 {[%emt 0:0:4]} Kf5 {[%emt 0:0:0]} 55. Bd8 {[%emt 0:0:6]} Ke6 {[%emt 0:0:28]} 56. Bg5 {[%emt 0:0:6]} Be7 {[%emt 0:0:33]} 57. Bd2 {[%emt 0:0:6]} Kf5 {[%emt 0:0:26]} 58. Bc1 {[%emt 0:0:18]
} Ke5 {[%emt 0:0:58]} 59. Bd2 {[%emt 0:0:5]} Kd6 {[%emt 0:0:0]} 60. Bf4+ {[%emt 0:0:3]} Kd7 {[%emt 0:0:3]} 61. b5 {[%emt 0:0:39]} cxb5+ {[%emt 0:0:20]} 62. Kxb5 {[%emt 0:0:3]} Ke6 {[%emt 0:0:3]} 63. Kc4 {[%emt 0:0:5]
} Kf5 {[%emt 0:0:6]} 64. Bh6 {[%emt 0:0:8]} Bg5 {[%emt 0:0:0]} 65. Bf8 {[%emt 0:0:7]} Ke4 {[%emt 0:0:3]} 66. Kc3 {[%emt 0:0:22]} Bh4 {[%emt 0:1:13]} 67. Kd2 {[%emt 0:0:17]} Kf3 {[%emt 0:0:4]} 68. Kd1 {[%emt 0:1:1]
} Kf2 {[%emt 0:0:31]} 69. Bc5+ {[%emt 0:0:8]} Kf1 {[%emt 0:0:0]} 70. Be3 {[%emt 0:0:11]} 1/2-1/2

[Event "RUS-chT Premier 2021"]
[White "Sychev,Klementy"]
[Black "Najer,Evgeniy"]
[WhiteTeam "КПРФ"]
[BlackTeam "Шахматная сборная Москвы"]
[Site "Sochi"]
[Round "2.24"]
[Annotator "ChessBase"]
[Result "1/2-1/2"]
[Date "2021.05.02"]
[WhiteElo "2572"]
[BlackElo "2648"]
[PlyCount "62"]
[TimeControl "60"]

1. d4 {[%emt 0:0:0]} Nf6 {[%emt 0:0:0]} 2. c4 {[%emt 0:0:0]} e6 {[%emt 0:0:0]} 3. Nc3 {[%emt 0:0:14]} Bb4 {[%emt 0:0:2]} 4. Bf4 {[%emt 0:0:37]} 0-0 {[%emt 0:2:12]} 5. Qb3 {[%emt 0:0:32]} Nc6 {[%emt 0:7:40]} 6. e3 {[%emt 0:0:38]
} d5 {[%emt 0:15:25]} 7. Nf3 {[%emt 0:25:27]} dxc4 {[%emt 0:0:0]} 8. Bxc4 {[%emt 0:0:39]} Bd6 {[%emt 0:0:3]} 9. Bg5 {[%emt 0:6:14]} Na5 {[%emt 0:2:0]} 10. Qa4 {[%emt 0:1:11]} Nxc4 {[%emt 0:0:58]} 11. Qxc4 {[%emt 0:0:7]
} h6 {[%emt 0:2:3]} 12. Bh4 {[%emt 0:0:7]} b6 {[%emt 0:10:48]
} 13. Ne5 {[%emt 0:20:13]} Bb7 {[%emt 0:4:0]} 14. 0-0 {[%emt 0:5:35]} g5 {[%emt 0:7:0]
} 15. Bg3 {[%emt 0:0:19]} Nh5 {[%emt 0:0:40]} 16. Rad1 {[%emt 0:5:37]
} Nxg3 {[%emt 0:7:44]} 17. hxg3 {[%emt 0:2:58]} Kg7 {[%emt 0:0:0]} 18. b4 {[%emt 0:10:14]} Qe7 {[%emt 0:6:58]} 19. Nd3 {[%emt 0:4:35]} f5 {[%emt 0:2:51]} 20. Rfe1 {[%emt 0:4:51]} a5 {[%emt 0:6:56]} 21. b5 {[%emt 0:1:32]
} Rad8 {[%emt 0:0:15]} 22. e4 {[%emt 0:1:19]} fxe4 {[%emt 0:0:0]} 23. Nxe4 {[%emt 0:0:6]} Bd5 {[%emt 0:0:3]} 24. Qc2 {[%emt 0:0:13]} Qf7 {[%emt 0:0:55]} 25. Re2 {[%emt 0:6:9]} Qf5 {[%emt 0:1:48]} 26. Rde1 {[%emt 0:0:14]
} Rd7 {[%emt 0:1:33]} 27. Re3 {[%emt 0:0:38]} Rdf7 {[%emt 0:0:0]} 28. a4 {[%emt 0:1:25]} Bb4 {[%emt 0:3:29]} 29. R1e2 {[%emt 0:0:29]} Bd6 {[%emt 0:0:3]} 30. Re1 {[%emt 0:0:51]} Bb4 {[%emt 0:0:4]} 31. R1e2 {[%emt 0:0:5]
} Bd6 {[%emt 0:0:4]} 1/2-1/2

[Event "RUS-chT Premier 2021"]
[White "Murzin,Volodar"]
[Black "Potkin,Vladimir"]
[WhiteTeam "Гоголевский, 14"]
[BlackTeam "КПРФ"]
[Site "Sochi"]
[Round "5.5"]
[Annotator "ChessBase"]
[Result "1-0"]
[Date "2021.05.05"]
[WhiteElo "2478"]
[BlackElo "2578"]
[PlyCount "114"]
[TimeControl "60"]

1. e4 {[%emt 0:0:0]} c5 {[%emt 0:0:0]} 2. Nf3 {[%emt 0:0:0]} e6 {[%emt 0:0:0]} 3. g3 {[%emt 0:0:0]} Nc6 {[%emt 0:0:27]} 4. Bg2 {[%emt 0:0:0]} Nf6 {[%emt 0:0:19]} 5. Qe2 {[%emt 0:0:1]} e5 {[%emt 0:1:4]} 6. 0-0 {[%emt 0:0:0]} Be7 {[%emt 0:0:14]} 7. Nc3 {[%emt 0:0:18]} d6 {[%emt 0:1:25]} 8. Nd5 {[%emt 0:3:55]} 0-0 {[%emt 0:19:8]} 9. c3 {[%emt 0:1:30]} Nxd5 {[%emt 0:0:0]} 10. exd5 {[%emt 0:0:9]} Nb8 {[%emt 0:0:2]} 11. d4 {[%emt 0:0:53]} cxd4 {[%emt 0:3:16]} 12. cxd4 {[%emt 0:0:12]} exd4 {[%emt 0:0:10]} 13. Nxd4 {[%emt 0:1:37]} Bf6 {[%emt 0:0:6]} 14. Be3 {[%emt 0:2:31]} Re8 {[%emt 0:0:0]} 15. Qd2 {[%emt 0:4:50]} Bd7 {[%emt 0:13:36]} 16. b4 {[%emt 0:10:41]} Na6 {[%emt 0:4:28]} 17. Rfc1 {[%emt 0:15:59]} h5 {[%emt 0:1:42]} 18. Rab1 {[%emt 0:4:31]
} h4 {[%emt 0:3:58]} 19. Rc4 {[%emt 0:9:5]} h3 {[%emt 0:7:1]
} 20. Bf3 {[%emt 0:10:49]} Nc7 {[%emt 0:10:25]} 21. b5 {[%emt 0:8:18]} Rc8 {[%emt 0:10:57]
} 22. a4 {[%emt 0:0:18]} Nxb5 {[%emt 0:0:5]} 23. Rxc8 Nxd4 {[%emt 0:0:4]
} 24. Rxd8 {[%emt 0:0:35]} Nxf3+ {[%emt 0:0:30]} 25. Kh1 {[%emt 0:0:4]
} Rxd8 {[%emt 0:0:25]} 26. Qd1 {[%emt 0:15:17]} Ne5 {[%emt 0:0:0]} 27. Bd4 {[%emt 0:0:29]} Bg4 28. Qb3 {[%emt 0:5:36]} Rc8 {[%emt 0:2:44]} 29. Qxb7 Rc2 {[%emt 0:1:45]} 30. Bxe5 {[%emt 0:1:16]} Bxe5 {[%emt 0:1:7]} 31. Qxa7 {[%emt 0:1:16]} Bf3+ {[%emt 0:2:22]} 32. Kg1 {[%emt 0:0:30]} Bxd5 {[%emt 0:0:5]
} 33. Qa5 {[%emt 0:1:58]} Bg2 {[%emt 0:4:4]} 34. Qd8+ {[%emt 0:0:30]
} Kh7 {[%emt 0:0:1]} 35. Qh4+ {[%emt 0:0:20]} Kg6 {[%emt 0:0:0]} 36. Re1 {[%emt 0:2:25]} f5 {[%emt 0:0:30]} 37. Qb4 {[%emt 0:0:30]} Rb2 38. Qc4 {[%emt 0:0:40]} d5 {[%emt 0:1:4]} 39. Qc6+ {[%emt 0:1:9]} Bf6 {[%emt 0:0:9]
} 40. Qe8+ Kh6 {[%emt 0:0:0]} 41. Qc8 {[%emt 0:9:33]} Kg5 42. Qc1+ {[%emt 0:0:53]} Kg6 {[%emt 0:24:21]} 43. Qf4 {[%emt 0:5:31]} Bg5 {[%emt 0:1:58]
} 44. Re6+ {[%emt 0:3:36]} Bf6 {[%emt 0:0:3]} 45. f3 {[%emt 0:0:0]} Rb3 {[%emt 0:3:11]} 46. Kf2 {[%emt 0:0:26]} d4 {[%emt 0:0:58]} 47. g4 {[%emt 0:2:39]} fxg4 {[%emt 0:0:47]} 48. fxg4 Kf7 {[%emt 0:2:28]} 49. Rxf6+ {[%emt 0:4:49]} gxf6 {[%emt 0:0:1]} 50. Qxd4 {[%emt 0:0:25]} Kg6 {[%emt 0:1:0]
} 51. Qf4 {[%emt 0:1:5]} Rb6 52. Qc4 Rc6 {[%emt 0:2:12]} 53. Qg8+ {[%emt 0:3:9]} Kh6 {[%emt 0:0:1]} 54. Ke3 {[%emt 0:0:28]} Ra6 {[%emt 0:0:22]
} 55. Qc4 {[%emt 0:1:36]} Ra5 {[%emt 0:0:14]} 56. Kf4 {[%emt 0:0:0]} Re5 57. Qf7 Re1 1-0

[Event "RUS-chT Premier 2021"]
[White "Sychev,Klementy"]
[Black "Savchenko,Boris"]
[WhiteTeam "КПРФ"]
[BlackTeam "Гоголевский, 14"]
[Site "Sochi"]
[Round "5.6"]
[Annotator "ChessBase"]
[Result "1/2-1/2"]
[Date "2021.05.05"]
[WhiteElo "2572"]
[BlackElo "2552"]
[PlyCount "81"]
[TimeControl "60"]

1. e4 {[%emt 0:0:0]} c5 {[%emt 0:0:30]} 2. Nf3 {[%emt 0:0:0]} d6 {[%emt 0:0:0]} 3. d4 {[%emt 0:0:0]} cxd4 {[%emt 0:0:16]} 4. Nxd4 {[%emt 0:0:14]} Nf6 {[%emt 0:0:6]} 5. Nc3 {[%emt 0:0:5]} a6 {[%emt 0:0:9]} 6. Bg5 {[%emt 0:3:16]
} Nbd7 {[%emt 0:0:48]} 7. Bc4 {[%emt 0:2:28]} Qb6 {[%emt 0:0:0]} 8. Qd2 {[%emt 0:4:54]} Qxb2 {[%emt 0:0:13]} 9. 0-0 {[%emt 0:0:13]} Qb4 {[%emt 0:1:58]} 10. Bb3 {[%emt 0:2:5]} e6 {[%emt 0:21:38]} 11. Rad1 {[%emt 0:0:14]
} Qa5 {[%emt 0:21:15]} 12. Rfe1 {[%emt 0:46:42]} Be7 {[%emt 0:0:0]} 13. Nd5 {[%emt 0:4:2]} Bd8 {[%emt 0:1:17]} 14. Qc1 {[%emt 0:2:51]} exd5 {[%emt 0:1:49]} 15. exd5+ {[%emt 0:3:16]} Ne5 {[%emt 0:3:1]} 16. f4 {[%emt 0:1:0]
} Nfg4 {[%emt 0:5:23]} 17. fxe5 {[%emt 0:3:12]} Nxe5 {[%emt 0:0:0]} 18. Bxd8 {[%emt 0:6:22]} Qxd8 {[%emt 0:0:6]} 19. Nf3 {[%emt 0:0:24]
} f6 {[%emt 0:2:10]} 20. Nxe5 {[%emt 0:4:1]} fxe5 {[%emt 0:3:41]} 21. Rf1 {[%emt 0:0:7]
} Bg4 {[%emt 0:6:1]} 22. Rde1 {[%emt 0:0:8]} Rf8 {[%emt 0:0:0]} 23. Qe3 {[%emt 0:5:35]} Qd7 {[%emt 0:1:59]} 24. Qb6 {[%emt 0:2:28]} Rc8 {[%emt 0:1:36]} 25. h3 {[%emt 0:5:26]} Bf5 {[%emt 0:2:39]} 26. Ba4 {[%emt 0:0:0]} Qxa4 {[%emt 0:0:8]} 27. Qxd6 {[%emt 0:0:3]} Qd4+ {[%emt 0:2:38]} 28. Kh1 {[%emt 0:0:3]} g6 {[%emt 0:0:38]} 29. Rxe5+ {[%emt 0:1:47]} Kf7 {[%emt 0:0:5]
} 30. g4 {[%emt 0:0:8]} Qc3 {[%emt 0:3:51]} 31. gxf5 {[%emt 0:0:0]} Qxh3+ {[%emt 0:0:12]} 32. Kg1 {[%emt 0:0:2]} Qg3+ {[%emt 0:1:51]} 33. Kh1 {[%emt 0:0:2]} Qh3+ {[%emt 0:0:41]} 34. Kg1 {[%emt 0:0:4]} Qg3+ {[%emt 0:0:13]
} 35. Kh1 {[%emt 0:0:10]} Kg8 {[%emt 0:0:33]} 36. f6 {[%emt 0:0:0]} Qh3+ {[%emt 0:0:39]} 37. Kg1 {[%emt 0:0:3]} Qg3+ {[%emt 0:0:5]} 38. Kh1 {[%emt 0:0:3]} Qh4+ {[%emt 0:0:48]} 39. Kg1 {[%emt 0:0:12]} Qg4+ {[%emt 0:0:22]
} 40. Kh1 {[%emt 0:0:0]} Qh4+ {[%emt 0:0:0]} 41. Kg1 {[%emt 0:0:21]
} 1/2-1/2

[Event "RUS-chT Premier 2021"]
[White "Pershin,Denis"]
[Black "Antipov,Mikhail Al."]
[WhiteTeam "СШОР"]
[BlackTeam "Wildberries Молодёжка"]
[Site "Sochi"]
[Round "5.16"]
[Annotator "ChessBase"]
[Result "1-0"]
[Date "2021.05.05"]
[WhiteElo "2391"]
[BlackElo "2609"]
[PlyCount "67"]
[TimeControl "60"]

1. d4 {[%emt 0:0:0]} Nf6 {[%emt 0:0:0]} 2. c4 {[%emt 0:0:0]} e6 {[%emt 0:0:0]} 3. Nc3 {[%emt 0:0:0]} Bb4 {[%emt 0:0:0]} 4. Qc2 {[%emt 0:0:0]} 0-0 {[%emt 0:0:0]} 5. e4 {[%emt 0:0:0]} d6 {[%emt 0:0:0]} 6. e5 {[%emt 0:0:0]} Bxc3+ {[%emt 0:0:3]} 7. Qxc3 {[%emt 0:1:59]} Ne4 {[%emt 0:0:12]} 8. Qc2 {[%emt 0:0:13]} f5 {[%emt 0:0:35]} 9. exf6 {[%emt 0:0:50]} Nxf6 {[%emt 0:5:17]
} 10. Nf3 {[%emt 0:5:22]} e5 {[%emt 0:8:42]} 11. dxe5 {[%emt 0:0:0]} dxe5 {[%emt 0:0:5]} 12. Be3 {[%emt 0:2:10]} e4 {[%emt 0:28:12]} 13. Nd2 {[%emt 0:8:55]} Nc6 {[%emt 0:9:27]} 14. h3 {[%emt 0:33:16]} Qe7 {[%emt 0:0:0]} 15. Qc3 {[%emt 0:6:57]} Bf5 {[%emt 0:3:36]} 16. Be2 {[%emt 0:0:10]} Nd7 {[%emt 0:2:47]} 17. 0-0 {[%emt 0:5:1]} Rae8 {[%emt 0:0:5]} 18. Rfe1 {[%emt 0:2:21]
} Qh4 {[%emt 0:4:20]} 19. Nf1 {[%emt 0:2:2]} Kh8 {[%emt 0:0:0]} 20. Rad1 {[%emt 0:1:16]} Be6 {[%emt 0:2:37]} 21. b3 {[%emt 0:3:4]} b6 {[%emt 0:8:39]} 22. Ng3 {[%emt 0:5:23]} Nde5 {[%emt 0:0:54]} 23. Bd4 {[%emt 0:1:55]
} Bc8 {[%emt 0:2:39]} 24. Bh5 {[%emt 0:1:15]} g6 {[%emt 0:0:0]} 25. Bxe5+ {[%emt 0:9:20]} Rxe5 {[%emt 0:0:29]} 26. Rxe4 {[%emt 0:0:29]} Qf6 {[%emt 0:0:4]} 27. Rxe5 {[%emt 0:2:3]} Nxe5 {[%emt 0:0:4]} 28. Re1 {[%emt 0:3:50]
} Re8 {[%emt 0:1:24]} 29. Ne4 {[%emt 0:2:1]} Qg7 {[%emt 0:0:0]} 30. Bd1 {[%emt 0:0:38]} Bf5 {[%emt 0:2:14]} 31. Qd2 {[%emt 0:2:25]} Nxc4 {[%emt 0:1:50]} 32. bxc4 {[%emt 0:0:34]} Rxe4 {[%emt 0:0:29]} 33. Rxe4 {[%emt 0:0:13]} Bxe4 {[%emt 0:0:3]} 34. Qd8+ {[%emt 0:0:6]} 1-0